fUSD/lending_fUSD_20260502
["ID","MTS","AMOUNT","RATE_DAILY","PERIOD"]
[421463926,1777723838000,-23122.44179011,0.00014,2]
[421463927,1777723838000,-48993.48432967,0.00014,2]
[421463931,1777723838000,-5416.49194817,0.00014,2]
[421463930,1777723838000,-1526.86,0.00014,2]
[421463933,1777723838000,-1141.47131779,0.00014,2]
[421463932,1777723838000,-906.56824085,0.00014,2]
[421463935,1777723838000,-2220869.18195764,0.00014,2]
[421463934,1777723838000,-332.79995746,0.00014,2]
[421463929,1777723838000,-380.52932165,0.00014,2]
[421463991,1777723840000,-221.51,0.00021,2]
[421463972,1777723840000,-500.0,0.00019178,2]
[421463981,1777723840000,-500.0,0.00019178,2]
[421463980,1777723840000,-500.0,0.00019178,2]
[421463979,1777723840000,-500.0,0.00019178,2]
[421463982,1777723840000,-500.0,0.00019178,2]
[421463975,1777723840000,-500.0,0.00019178,2]
[421463976,1777723840000,-500.0,0.00019178,2]
[421463974,1777723840000,-500.0,0.00019178,2]
[421463973,1777723840000,-500.0,0.00019178,2]
[421463985,1777723840000,-582.35372528,0.0001945,2]
[421463978,1777723840000,-500.0,0.00019178,2]
[421463969,1777723840000,-500.0,0.00019178,2]
[421463990,1777723840000,-500.0,0.0002095,2]
[421463995,1777723840000,-582.35372528,0.00022225,2]
[421463983,1777723840000,-500.0,0.00019178,2]
[421463987,1777723840000,-9277.0,0.0002,2]
[421463994,1777723840000,-3319.04982559,0.00022181,43]
[421463988,1777723840000,-262.7668,0.00020851,2]
[421463984,1777723840000,-500.0,0.00019178,2]
[421463989,1777723840000,-162.41759262,0.00020914,2]
[421463977,1777723840000,-500.0,0.00019178,2]
[421463971,1777723840000,-500.0,0.00019178,2]
[421463966,1777723840000,-6607.0,0.00018856,2]
[421463963,1777723840000,-6142.76739522,0.00017961,2]
[421463948,1777723840000,-150.0,0.00014,2]
[421463949,1777723840000,-150.0,0.00014,2]
[421463947,1777723840000,-221.51,0.00014,2]
[421463952,1777723840000,-1159.40805389,0.00014042,2]
[421463950,1777723840000,-150.0,0.00014,2]
[421463946,1777723840000,-2032653.34071678,0.00014,2]
[421463951,1777723840000,-154.6268747,0.00014,2]
[421463954,1777723840000,-202.60211058,0.00015092,2]
[421463955,1777723840000,-420.0,0.00015229,2]
[421463953,1777723840000,-616.83,0.000148,2]
[421463956,1777723840000,-6142.76739522,0.0001593,2]
[421463968,1777723840000,-500.0,0.00019178,2]
[421463959,1777723840000,-1527.21,0.00016116,2]
[421463967,1777723840000,-500.0,0.00019178,2]
[421463957,1777723840000,-5923.81,0.00016116,2]
[421463958,1777723840000,-4999.99,0.00016116,2]
[421463965,1777723840000,-493.61,0.00018856,2]
[421463962,1777723840000,-758.54,0.00017376,2]
[421463960,1777723840000,-206.62,0.000162,2]
[421463961,1777723840000,-582.35372528,0.00016675,2]
[421463964,1777723840000,-1195.9,0.00018856,2]
[421463970,1777723840000,-500.0,0.00019178,2]
[421463992,1777723840000,-227.41956599,0.00021918,10]
[421463986,1777723840000,-6142.76739522,0.00019991,2]
[421463993,1777723840000,-6142.76739522,0.00022021,2]
[421464021,1777723840000,-582.35372528,0.00024999,2]
[421464023,1777723840000,-156.7,0.00026027,7]
[421464032,1777723840000,-843.3,0.000274,7]
[421464024,1777723840000,-6142.76739522,0.00026082,2]
[421464034,1777723840000,-7771.46,0.000274,7]
[421464025,1777723840000,-500.0,0.00027137,2]
[421464027,1777723840000,-155.89,0.00027397,30]
[421464026,1777723840000,-500.0,0.00027137,2]
[421464033,1777723840000,-158.3,0.000274,7]
[421464028,1777723840000,-156.7,0.00027397,30]
[421464030,1777723840000,-939.22,0.00027397,10]
[421464031,1777723840000,-12714.24,0.000274,14]
[421464035,1777723840000,-4526.22404449,0.00027606,68]
[421464036,1777723840000,-156.65983844,0.00027671,2]
[421464037,1777723840000,-221.51,0.000277,7]
[421464043,1777723840000,-156.7,0.00028767,2]
[421464039,1777723840000,-685.0,0.00028088,10]
[421464040,1777723840000,-6142.76739522,0.00028112,2]
[421464041,1777723840000,-500.0,0.00028262,3]
[421464042,1777723840000,-155.89,0.00028767,2]
[421464038,1777723840000,-582.35372528,0.00027774,2]
[421464022,1777723840000,-155.89,0.00026027,7]
[421464018,1777723840000,-156.7,0.00024658,2]
[421464029,1777723840000,-1500.0,0.00027397,2]
[421464019,1777723840000,-166.66,0.0002478,30]
[421464017,1777723840000,-155.89,0.00024658,2]
[421463996,1777723840000,-288.0,0.00022407,2]
[421463997,1777723840000,-166.66,0.0002242,30]
[421464008,1777723840000,-166.66,0.00023836,30]
[421463998,1777723840000,-457.12,0.00022466,2]
[421463999,1777723840000,-1030.95,0.00022562,2]
[421464000,1777723840000,-425.52,0.00022562,2]
[421464006,1777723840000,-200.0,0.00023403,2]
[421464001,1777723840000,-5695.69,0.00022562,2]
[421464005,1777723840000,-371.07449591,0.00023393,2]
[421464002,1777723840000,-150.72,0.00022736,2]
[421464003,1777723840000,-166.66,0.00022892,30]
[421464007,1777723840000,-3403.95204762,0.00023537,49]
[421464014,1777723840000,-500.0,0.00024493,2]
[421464004,1777723840000,-166.66,0.00023364,30]
[421464013,1777723840000,-166.66,0.00024308,30]
[421464009,1777723840000,-503.28411573,0.000239,2]
[421464012,1777723840000,-166.67,0.00024292,2]
[421464015,1777723840000,-5000.0,0.00024521,2]
[421464011,1777723840000,-6142.76739522,0.00024052,2]
[421464020,1777723840000,-3501.87673771,0.00024894,56]
[421464010,1777723840000,-9019.68781319,0.000239,2]
[421464016,1777723840000,-1266.17646776,0.0002463,2]
[421464087,1777723841000,-843.3,0.000321,7]
[421464083,1777723841000,-787.9,0.00032,2]
[421464086,1777723841000,-2391.63,0.00032,2]
[421464090,1777723841000,-12714.24,0.000322,14]
[421464081,1777723841000,-500.0,0.000319,11]
[421464085,1777723841000,-1093.27811448,0.00032,120]
[421464077,1777723841000,-7771.46,0.000317,7]
[421464079,1777723841000,-170.0985877,0.0003174,60]
[421464082,1777723841000,-784.99225359,0.00032,120]
[421464074,1777723841000,-242.27436383,0.00031663,2]
[421464091,1777723841000,-500.0,0.00032249,2]
[421464076,1777723841000,-166.67,0.0003169,120]
[421464075,1777723841000,-5648.49604136,0.00031676,83]
[421464088,1777723841000,-158.0,0.00032157,30]
[421464099,1777723841000,-500.0,0.00032249,2]
[421464097,1777723841000,-500.0,0.00032249,2]
[421464089,1777723841000,-6142.76739522,0.00032173,2]
[421464092,1777723841000,-500.0,0.00032249,2]
[421464098,1777723841000,-500.0,0.00032249,2]
[421464094,1777723841000,-500.0,0.00032249,2]
[421464093,1777723841000,-500.0,0.00032249,2]
[421464095,1777723841000,-500.0,0.00032249,2]
[421464110,1777723841000,-500.0,0.00032249,2]
[421464102,1777723841000,-500.0,0.00032249,2]
[421464101,1777723841000,-500.0,0.00032249,2]
[421464103,1777723841000,-500.0,0.00032249,2]
[421464104,1777723841000,-500.0,0.00032249,2]
[421464080,1777723841000,-30000.0,0.00031817,30]
[421464096,1777723841000,-500.0,0.00032249,2]
[421464078,1777723841000,-156.3020492,0.0003174,60]
[421464052,1777723841000,-404.09,0.00029501,2]
[421464070,1777723841000,-221.51,0.000313,7]
[421464045,1777723841000,-174.11,0.00029314,2]
[421464044,1777723841000,-300.0,0.00029231,2]
[421464046,1777723841000,-174.11,0.00029314,7]
[421464047,1777723841000,-174.12,0.00029314,30]
[421464049,1777723841000,-173.21,0.00029374,7]
[421464051,1777723841000,-500.0,0.00029386,4]
[421464106,1777723841000,-500.0,0.00032249,2]
[421464050,1777723841000,-173.23,0.00029374,30]
[421464048,1777723841000,-173.21,0.00029374,2]
[421464058,1777723841000,-843.3,0.000303,7]
[421464059,1777723841000,-158.3,0.000303,7]
[421464056,1777723841000,-33328.0458,0.00030212,2]
[421464055,1777723841000,-6142.76739522,0.00030143,2]
[421464053,1777723841000,-150.0,0.00029534,2]
[421464057,1777723841000,-12714.24,0.000303,14]
[421464054,1777723841000,-7771.46,0.0003,7]
[421464073,1777723841000,-242.28,0.00031661,2]
[421464071,1777723841000,-307.07637612,0.00031301,2]
[421464072,1777723841000,-500.0,0.00031636,6]
[421464060,1777723841000,-500.0,0.00030511,5]
[421464066,1777723841000,-158.0,0.00031157,30]
[421464064,1777723841000,-270.120849,0.00031066,14]
[421464061,1777723841000,-582.35372528,0.00030549,2]
[421464062,1777723841000,-1802.13959813,0.00031,120]
[421464063,1777723841000,-150.0,0.00031011,2]
[421464065,1777723841000,-2000.0,0.00031123,2]
[421464068,1777723841000,-665.52958195,0.00031255,2]
[421464067,1777723841000,-160.0,0.00031159,2]
[421464069,1777723841000,-150.72,0.00031262,120]
[421464084,1777723841000,-787.9,0.00032,2]
[421464108,1777723841000,-500.0,0.00032249,2]
[421464159,1777723841000,-748.37332842,0.00032875,2]
[421464109,1777723841000,-500.0,0.00032249,2]
[421464139,1777723841000,-261.66039,0.0003257,32]
[421464142,1777723841000,-152.0,0.00032591,7]
[421464150,1777723841000,-500.0,0.00032873,5]
[421464147,1777723841000,-500.0,0.00032761,8]
[421464143,1777723841000,-152.0,0.00032601,30]
[421464148,1777723841000,-18753.7127526,0.00032786,2]
[421464145,1777723841000,-152.0,0.00032634,30]
[421464146,1777723841000,-7771.46,0.000327,7]
[421464149,1777723841000,-836.3347526,0.00032786,2]
[421464144,1777723841000,-152.0,0.00032624,7]
[421464163,1777723841000,-2971.81500965,0.00032875,30]
[421464164,1777723841000,-5385.69637961,0.00032876,30]
[421464162,1777723841000,-30000.0,0.00032875,2]
[421464140,1777723841000,-261.66039,0.0003257,32]
[421464161,1777723841000,-748.37332842,0.00032875,2]
[421464152,1777723841000,-500.92806458,0.00032873,5]
[421464154,1777723841000,-500.0,0.00032873,5]
[421464156,1777723841000,-501.52594068,0.00032873,5]
[421464153,1777723841000,-500.0,0.00032873,5]
[421464155,1777723841000,-247.22140874,0.00032873,5]
[421464157,1777723841000,-501.58777067,0.00032873,5]
[421464158,1777723841000,-748.37332842,0.00032875,2]
[421464100,1777723841000,-500.0,0.00032249,2]
[421464169,1777723841000,-500.0,0.00032876,2]
[421464167,1777723841000,-1457.589938,0.00032876,2]
[421464168,1777723841000,-943.6052,0.00032876,2]
[421464170,1777723841000,-1040.38,0.00032876,2]
[421464165,1777723841000,-1088.124743,0.00032876,2]
[421464160,1777723841000,-748.37332842,0.00032875,2]
[421464151,1777723841000,-500.0,0.00032873,5]
[421464166,1777723841000,-15042.407713,0.00032876,2]
[421464135,1777723841000,-189.01452914,0.000325,5]
[421464141,1777723841000,-261.66039,0.0003257,32]
[421464107,1777723841000,-500.0,0.00032249,2]
[421464105,1777723841000,-500.0,0.00032249,2]
[421464113,1777723841000,-500.0,0.00032249,2]
[421464115,1777723841000,-500.0,0.00032249,2]
[421464114,1777723841000,-500.0,0.00032249,2]
[421464111,1777723841000,-500.0,0.00032249,2]
[421464112,1777723841000,-500.0,0.00032249,2]
[421464123,1777723841000,-151.0,0.0003225,7]
[421464124,1777723841000,-446.094758,0.0003225,7]
[421464117,1777723841000,-347.04117,0.0003225,7]
[421464122,1777723841000,-151.0,0.0003225,7]
[421464121,1777723841000,-151.0,0.0003225,7]
[421464116,1777723841000,-162.92631253,0.00032249,2]
[421464118,1777723841000,-347.04117,0.0003225,7]
[421464119,1777723841000,-347.04117,0.0003225,7]
[421464120,1777723841000,-347.04117,0.0003225,7]
[421464129,1777723841000,-501.16361639,0.00032273,5]
[421464138,1777723841000,-261.66039,0.0003257,32]
[421464134,1777723841000,-165.13,0.00032424,2]
[421464131,1777723841000,-500.4843885,0.00032273,5]
[421464126,1777723841000,-446.094758,0.0003225,7]
[421464125,1777723841000,-446.094758,0.0003225,7]
[421464136,1777723841000,-276.88888565,0.00032547,28]
[421464137,1777723841000,-150.0,0.00032562,2]
[421464132,1777723841000,-2000.0,0.000323,2]
[421464128,1777723841000,-153.167408,0.0003225,7]
[421464133,1777723841000,-500.0,0.00032354,21]
[421464127,1777723841000,-446.094758,0.0003225,7]
[421464130,1777723841000,-500.75139635,0.00032273,5]
[421464199,1777723842000,-4939.0213,0.00032876,2]
[421464202,1777723842000,-4939.0213,0.00032876,2]
[421464196,1777723842000,-500.0,0.00032876,2]
[421464208,1777723842000,-4939.0213,0.00032876,2]
[421464205,1777723842000,-4939.0213,0.00032876,2]
[421464201,1777723842000,-683.38,0.00032876,2]
[421464207,1777723842000,-4939.0213,0.00032876,2]
[421464209,1777723842000,-4939.0213,0.00032876,2]
[421464204,1777723842000,-4939.0213,0.00032876,2]
[421464210,1777723842000,-4939.0213,0.00032876,2]
[421464203,1777723842000,-4939.0213,0.00032876,2]
[421464218,1777723842000,-679.72,0.00032876,2]
[421464211,1777723842000,-4939.0213,0.00032876,2]
[421464213,1777723842000,-4939.0213,0.00032876,2]
[421464212,1777723842000,-4939.0213,0.00032876,2]
[421464216,1777723842000,-928.65,0.00032876,2]
[421464215,1777723842000,-500.0,0.00032876,2]
[421464221,1777723842000,-4939.0213,0.00032876,2]
[421464217,1777723842000,-4939.0213,0.00032876,2]
[421464226,1777723842000,-4939.0213,0.00032876,2]
[421464224,1777723842000,-4939.0213,0.00032876,2]
[421464197,1777723842000,-4939.0213,0.00032876,2]
[421464223,1777723842000,-4939.0213,0.00032876,2]
[421464206,1777723842000,-4939.0213,0.00032876,2]
[421464198,1777723842000,-4939.0213,0.00032876,2]
[421464177,1777723842000,-500.0,0.00032876,2]
[421464191,1777723842000,-500.0,0.00032876,2]
[421464219,1777723842000,-4939.0213,0.00032876,2]
[421464172,1777723842000,-500.0,0.00032876,2]
[421464174,1777723842000,-778.36,0.00032876,2]
[421464175,1777723842000,-500.0,0.00032876,2]
[421464171,1777723842000,-565.75,0.00032876,2]
[421464173,1777723842000,-500.0,0.00032876,2]
[421464186,1777723842000,-500.0,0.00032876,2]
[421464179,1777723842000,-500.0,0.00032876,2]
[421464176,1777723842000,-500.0,0.00032876,2]
[421464180,1777723842000,-605.63162275,0.00032876,2]
[421464178,1777723842000,-500.0,0.00032876,2]
[421464194,1777723842000,-500.0,0.00032876,2]
[421464188,1777723842000,-500.0,0.00032876,2]
[421464185,1777723842000,-514.24229941,0.00032876,2]
[421464181,1777723842000,-500.0,0.00032876,2]
[421464187,1777723842000,-500.0,0.00032876,2]
[421464183,1777723842000,-500.0,0.00032876,2]
[421464182,1777723842000,-626.64297969,0.00032876,2]
[421464200,1777723842000,-500.0,0.00032876,2]
[421464189,1777723842000,-500.0,0.00032876,2]
[421464190,1777723842000,-500.0,0.00032876,2]
[421464192,1777723842000,-500.0,0.00032876,2]
[421464193,1777723842000,-542.9,0.00032876,2]
[421464195,1777723842000,-500.0,0.00032876,2]
[421464184,1777723842000,-500.0,0.00032876,2]
[421464220,1777723842000,-4939.0213,0.00032876,2]
[421464214,1777723842000,-500.0,0.00032876,2]
[421464227,1777723842000,-4939.0213,0.00032876,2]
[421464256,1777723842000,-500.66,0.00032876,2]
[421464257,1777723842000,-500.0,0.00032876,2]
[421464263,1777723842000,-500.0,0.00032876,2]
[421464261,1777723842000,-554.91,0.00032876,2]
[421464258,1777723842000,-500.0,0.00032876,2]
[421464262,1777723842000,-500.0,0.00032876,2]
[421464260,1777723842000,-173.68830138,0.00032876,2]
[421464259,1777723842000,-1259.38,0.00032876,2]
[421464266,1777723842000,-504.46,0.00032876,2]
[421464265,1777723842000,-500.0,0.00032876,2]
[421464271,1777723842000,-500.0,0.00032876,2]
[421464253,1777723842000,-4939.0213,0.00032876,2]
[421464269,1777723842000,-500.0,0.00032876,2]
[421464268,1777723842000,-500.0,0.00032876,2]
[421464274,1777723842000,-500.0,0.00032876,2]
[421464275,1777723842000,-897.34,0.00032876,2]
[421464272,1777723842000,-500.0,0.00032876,2]
[421464273,1777723842000,-500.0,0.00032876,2]
[421464277,1777723842000,-500.0,0.00032876,2]
[421464279,1777723842000,-500.0,0.00032876,2]
[421464278,1777723842000,-500.0,0.00032876,2]
[421464281,1777723842000,-500.0,0.00032876,2]
[421464276,1777723842000,-500.0,0.00032876,2]
[421464225,1777723842000,-4939.0213,0.00032876,2]
[421464270,1777723842000,-500.0,0.00032876,2]
[421464255,1777723842000,-500.0,0.00032876,2]
[421464267,1777723842000,-718.59,0.00032876,2]
[421464254,1777723842000,-4939.0213,0.00032876,2]
[421464264,1777723842000,-608.52537412,0.00032876,2]
[421464222,1777723842000,-4939.0213,0.00032876,2]
[421464233,1777723842000,-4939.0213,0.00032876,2]
[421464229,1777723842000,-4939.0213,0.00032876,2]
[421464228,1777723842000,-500.0,0.00032876,2]
[421464237,1777723842000,-4939.0213,0.00032876,2]
[421464232,1777723842000,-500.0,0.00032876,2]
[421464230,1777723842000,-500.0,0.00032876,2]
[421464231,1777723842000,-4939.0213,0.00032876,2]
[421464280,1777723842000,-500.0,0.00032876,2]
[421464235,1777723842000,-4939.0213,0.00032876,2]
[421464236,1777723842000,-4939.0213,0.00032876,2]
[421464234,1777723842000,-574.46,0.00032876,2]
[421464239,1777723842000,-4939.0213,0.00032876,2]
[421464241,1777723842000,-4939.0213,0.00032876,2]
[421464251,1777723842000,-4939.0213,0.00032876,2]
[421464244,1777723842000,-500.0,0.00032876,2]
[421464242,1777723842000,-4939.0213,0.00032876,2]
[421464247,1777723842000,-4939.0213,0.00032876,2]
[421464252,1777723842000,-4939.0213,0.00032876,2]
[421464249,1777723842000,-4939.0213,0.00032876,2]
[421464248,1777723842000,-4939.0213,0.00032876,2]
[421464250,1777723842000,-958.96,0.00032876,2]
[421464243,1777723842000,-4939.0213,0.00032876,2]
[421464245,1777723842000,-4939.0213,0.00032876,2]
[421464246,1777723842000,-776.6,0.00032876,2]
[421464322,1777723843000,-500.0,0.00032876,2]
[421464318,1777723843000,-742.02,0.00032876,2]
[421464316,1777723843000,-500.0,0.00032876,2]
[421464317,1777723843000,-500.0,0.00032876,2]
[421464319,1777723843000,-500.0,0.00032876,2]
[421464321,1777723843000,-500.0,0.00032876,2]
[421464323,1777723843000,-500.0,0.00032876,2]
[421464327,1777723843000,-500.0,0.00032876,2]
[421464310,1777723843000,-621.17918347,0.00032876,2]
[421464308,1777723843000,-164.03353815,0.00032876,2]
[421464320,1777723843000,-562.83,0.00032876,2]
[421464328,1777723843000,-500.0,0.00032876,2]
[421464324,1777723843000,-500.0,0.00032876,2]
[421464337,1777723843000,-500.0,0.00032876,2]
[421464326,1777723843000,-500.0,0.00032876,2]
[421464340,1777723843000,-500.0,0.00032876,2]
[421464333,1777723843000,-500.0,0.00032876,2]
[421464329,1777723843000,-500.0,0.00032876,2]
[421464330,1777723843000,-494.15744918,0.00032876,2]
[421464342,1777723843000,-469.44204596,0.00032876,2]
[421464334,1777723843000,-500.0,0.00032876,2]
[421464332,1777723843000,-500.0,0.00032876,2]
[421464335,1777723843000,-500.0,0.00032876,2]
[421464341,1777723843000,-500.0,0.00032876,2]
[421464338,1777723843000,-500.0,0.00032876,2]
[421464336,1777723843000,-500.0,0.00032876,2]
[421464304,1777723843000,-500.0,0.00032876,2]
[421464325,1777723843000,-500.0,0.00032876,2]
[421464313,1777723843000,-1394.15,0.00032876,2]
[421464284,1777723843000,-500.0,0.00032876,2]
[421464306,1777723843000,-500.0,0.00032876,2]
[421464286,1777723843000,-500.0,0.00032876,2]
[421464287,1777723843000,-500.0,0.00032876,2]
[421464345,1777723843000,-500.0,0.00032876,2]
[421464282,1777723843000,-500.0,0.00032876,2]
[421464288,1777723843000,-500.0,0.00032876,2]
[421464289,1777723843000,-500.0,0.00032876,2]
[421464285,1777723843000,-686.07,0.00032876,2]
[421464283,1777723843000,-500.0,0.00032876,2]
[421464292,1777723843000,-500.0,0.00032876,2]
[421464290,1777723843000,-500.0,0.00032876,2]
[421464291,1777723843000,-500.0,0.00032876,2]
[421464297,1777723843000,-359.96989241,0.00032876,2]
[421464296,1777723843000,-500.0,0.00032876,2]
[421464314,1777723843000,-500.0,0.00032876,2]
[421464294,1777723843000,-500.0,0.00032876,2]
[421464299,1777723843000,-500.0,0.00032876,2]
[421464301,1777723843000,-500.0,0.00032876,2]
[421464293,1777723843000,-505.56755252,0.00032876,2]
[421464298,1777723843000,-500.0,0.00032876,2]
[421464300,1777723843000,-522.02105805,0.00032876,2]
[421464295,1777723843000,-500.0,0.00032876,2]
[421464315,1777723843000,-528.39826246,0.00032876,2]
[421464309,1777723843000,-500.0,0.00032876,2]
[421464303,1777723843000,-500.0,0.00032876,2]
[421464307,1777723843000,-947.21,0.00032876,2]
[421464305,1777723843000,-252.14614446,0.00032876,2]
[421464312,1777723843000,-500.0,0.00032876,2]
[421464311,1777723843000,-500.0,0.00032876,2]
[421464302,1777723843000,-249.90164699,0.00032876,2]
[421464349,1777723843000,-500.0,0.00032876,2]
[421464339,1777723843000,-500.0,0.00032876,2]
[421464343,1777723843000,-500.0,0.00032876,2]
[421464381,1777723843000,-500.0,0.00032876,2]
[421464384,1777723843000,-500.0,0.00032876,2]
[421464389,1777723843000,-500.0,0.00032876,2]
[421464380,1777723843000,-500.0,0.00032876,2]
[421464383,1777723843000,-500.0,0.00032876,2]
[421464390,1777723843000,-500.0,0.00032876,2]
[421464382,1777723843000,-500.0,0.00032876,2]
[421464387,1777723843000,-3178.77,0.00032876,2]
[421464385,1777723843000,-500.0,0.00032876,2]
[421464386,1777723843000,-500.0,0.00032876,2]
[421464388,1777723843000,-500.0,0.00032876,2]
[421464398,1777723843000,-1430.11,0.00032876,2]
[421464393,1777723843000,-364.07232466,0.00032876,2]
[421464371,1777723843000,-500.0,0.00032876,2]
[421464397,1777723843000,-500.0,0.00032876,2]
[421464400,1777723843000,-500.0,0.00032876,2]
[421464396,1777723843000,-555.31,0.00032876,2]
[421464392,1777723843000,-500.0,0.00032876,2]
[421464391,1777723843000,-500.0,0.00032876,2]
[421464395,1777723843000,-500.0,0.00032876,2]
[421464394,1777723843000,-500.0,0.00032876,2]
[421464399,1777723843000,-500.0,0.00032876,2]
[421464401,1777723843000,-153.22161793,0.00032876,2]
[421464406,1777723843000,-500.0,0.00032876,2]
[421464405,1777723843000,-500.0,0.00032876,2]
[421464404,1777723843000,-266.43072812,0.00032876,2]
[421464351,1777723843000,-500.0,0.00032876,2]
[421464407,1777723843000,-500.0,0.00032876,2]
[421464403,1777723843000,-367.49707919,0.00032876,2]
[421464376,1777723843000,-500.0,0.00032876,2]
[421464402,1777723843000,-500.0,0.00032876,2]
[421464375,1777723843000,-500.0,0.00032876,2]
[421464355,1777723843000,-511.48117501,0.00032876,2]
[421464369,1777723843000,-500.0,0.00032876,2]
[421464346,1777723843000,-500.0,0.00032876,2]
[421464352,1777723843000,-500.0,0.00032876,2]
[421464348,1777723843000,-957.08,0.00032876,2]
[421464354,1777723843000,-500.0,0.00032876,2]
[421464350,1777723843000,-500.0,0.00032876,2]
[421464344,1777723843000,-500.0,0.00032876,2]
[421464347,1777723843000,-855.83,0.00032876,2]
[421464367,1777723843000,-500.0,0.00032876,2]
[421464357,1777723843000,-500.0,0.00032876,2]
[421464368,1777723843000,-500.0,0.00032876,2]
[421464356,1777723843000,-500.0,0.00032876,2]
[421464360,1777723843000,-529.19241237,0.00032876,2]
[421464353,1777723843000,-500.0,0.00032876,2]
[421464358,1777723843000,-827.42,0.00032876,2]
[421464359,1777723843000,-500.0,0.00032876,2]
[421464377,1777723843000,-1011.98,0.00032876,2]
[421464373,1777723843000,-500.0,0.00032876,2]
[421464372,1777723843000,-500.0,0.00032876,2]
[421464378,1777723843000,-500.0,0.00032876,2]
[421464379,1777723843000,-500.0,0.00032876,2]
[421464374,1777723843000,-500.0,0.00032876,2]
[421464363,1777723843000,-500.0,0.00032876,2]
[421464364,1777723843000,-500.0,0.00032876,2]
[421464362,1777723843000,-500.0,0.00032876,2]
[421464361,1777723843000,-500.0,0.00032876,2]
[421464365,1777723843000,-500.0,0.00032876,2]
[421464370,1777723843000,-500.0,0.00032876,2]
[421464451,1777723844000,-151.0,0.00032876,7]
[421464444,1777723844000,-840.77,0.00032876,2]
[421464449,1777723844000,-151.0,0.00032876,7]
[421464442,1777723844000,-500.0,0.00032876,2]
[421464437,1777723844000,-500.0,0.00032876,2]
[421464445,1777723844000,-500.0,0.00032876,2]
[421464447,1777723844000,-244.84994915,0.00032876,2]
[421464452,1777723844000,-500.0,0.00032876,2]
[421464453,1777723844000,-500.0,0.00032876,2]
[421464443,1777723844000,-500.0,0.00032876,2]
[421464450,1777723844000,-500.0,0.00032876,2]
[421464440,1777723844000,-500.0,0.00032876,2]
[421464446,1777723844000,-367.49973256,0.00032876,2]
[421464448,1777723844000,-564.21,0.00032876,2]
[421464466,1777723844000,-569.19299911,0.00032876,2]
[421464462,1777723844000,-500.0,0.00032876,2]
[421464456,1777723844000,-500.0,0.00032876,2]
[421464465,1777723844000,-500.0,0.00032876,2]
[421464459,1777723844000,-591.03,0.00032876,2]
[421464455,1777723844000,-500.0,0.00032876,2]
[421464467,1777723844000,-500.0,0.00032876,2]
[421464464,1777723844000,-1257.78,0.00032876,2]
[421464454,1777723844000,-500.0,0.00032876,2]
[421464458,1777723844000,-500.0,0.00032876,2]
[421464461,1777723844000,-761.93,0.00032876,2]
[421464463,1777723844000,-500.0,0.00032876,2]
[421464457,1777723844000,-236.60276197,0.00032876,2]
[421464436,1777723844000,-500.0,0.00032876,2]
[421464460,1777723844000,-500.0,0.00032876,2]
[421464438,1777723844000,-169.86201634,0.00032876,2]
[421464412,1777723844000,-530.47939847,0.00032876,2]
[421464434,1777723844000,-220.20129485,0.00032876,2]
[421464475,1777723844000,-1241.55,0.00032876,2]